fUSD/lending_fUSD_20260630
["ID","MTS","AMOUNT","RATE_DAILY","PERIOD"]
[426751045,1782779450000,-150.0,0.00031636,30]
[426751048,1782779450000,-150.0,0.00031684,30]
[426750995,1782779450000,-652.0,0.00030619,30]
[426751050,1782779450000,-154.0,0.00031697,30]
[426751020,1782779450000,-150.0,0.0003135,30]
[426751049,1782779450000,-154.46935744,0.00031688,2]
[426751017,1782779450000,-599.17,0.0003108,2]
[426750998,1782779450000,-154.0,0.00030697,30]
[426751022,1782779450000,-505.0,0.00031456,16]
[426751006,1782779450000,-150.0,0.00030921,30]
[426751004,1782779450000,-150.0,0.00030921,30]
[426751007,1782779450000,-150.0,0.00030921,30]
[426751009,1782779450000,-150.0,0.00030921,30]
[426751003,1782779450000,-150.0,0.00030921,30]
[426751005,1782779450000,-150.0,0.00030921,30]
[426751002,1782779450000,-150.0,0.00030841,2]
[426751001,1782779450000,-1242.9615373,0.00030818,2]
[426751008,1782779450000,-150.0,0.00030921,30]
[426751010,1782779450000,-150.0,0.00030921,30]
[426751011,1782779450000,-150.0,0.00030921,30]
[426751018,1782779450000,-150.0,0.00031207,30]
[426751014,1782779450000,-1000.0,0.00031,7]
[426751024,1782779450000,-150.0,0.00031493,30]
[426751023,1782779450000,-224.20005934,0.00031473,2]
[426751025,1782779450000,-150.0,0.00031493,30]
[426751013,1782779450000,-800.0,0.00031,2]
[426751016,1782779450000,-150.0,0.00031064,30]
[426751019,1782779450000,-150.0,0.00031302,30]
[426751015,1782779450000,-44190.32603756,0.00031008,2]
[426751021,1782779450000,-1686.56754165,0.00031438,2]
[426751012,1782779450000,-150.0,0.00030921,30]
[426751088,1782779451000,-2210.27188032,0.00032467,30]
[426751084,1782779451000,-150.0,0.00032383,2]
[426751089,1782779451000,-2210.27188032,0.00032467,30]
[426751091,1782779451000,-2210.27188032,0.00032467,30]
[426751087,1782779451000,-2210.27188032,0.00032467,30]
[426751085,1782779451000,-20043.41464798,0.000324,2]
[426751075,1782779451000,-310.0,0.000322,2]
[426751096,1782779451000,-2210.27188032,0.00032467,30]
[426751079,1782779451000,-4757.95,0.00032232,7]
[426751090,1782779451000,-2210.27188032,0.00032467,30]
[426751082,1782779451000,-505.0,0.00032278,17]
[426751086,1782779451000,-150.0,0.00032447,30]
[426751093,1782779451000,-2210.27188032,0.00032467,30]
[426751108,1782779451000,-505.18157816,0.00032467,30]
[426751095,1782779451000,-2210.27188032,0.00032467,30]
[426751094,1782779451000,-2210.27188032,0.00032467,30]
[426751097,1782779451000,-2210.27188032,0.00032467,30]
[426751098,1782779451000,-505.18157816,0.00032467,30]
[426751100,1782779451000,-505.18157816,0.00032467,30]
[426751099,1782779451000,-505.18157816,0.00032467,30]
[426751107,1782779451000,-505.18157816,0.00032467,30]
[426751101,1782779451000,-505.18157816,0.00032467,30]
[426751102,1782779451000,-505.18157816,0.00032467,30]
[426751103,1782779451000,-505.18157816,0.00032467,30]
[426751081,1782779451000,-275.17437325,0.00032269,2]
[426751104,1782779451000,-505.18157816,0.00032467,30]
[426751092,1782779451000,-2210.27188032,0.00032467,30]
[426751076,1782779451000,-150.0,0.00032209,30]
[426751053,1782779451000,-150.0,0.00031779,30]
[426751080,1782779451000,-275.47,0.00032232,7]
[426751105,1782779451000,-505.18157816,0.00032467,30]
[426751051,1782779451000,-326.59,0.000317,7]
[426751052,1782779451000,-384.867825,0.0003172,7]
[426751055,1782779451000,-200.0,0.00031818,2]
[426751056,1782779451000,-2000.0,0.00031825,7]
[426751057,1782779451000,-150.0,0.00031923,30]
[426751054,1782779451000,-211.72,0.00031785,3]
[426751060,1782779451000,-800.0,0.00032,5]
[426751062,1782779451000,-160.0,0.00032,120]
[426751059,1782779451000,-6406.4588,0.00032,2]
[426751058,1782779451000,-841.11,0.00031999,7]
[426751061,1782779451000,-250.0,0.00032,7]
[426751077,1782779451000,-1097.67,0.00032232,7]
[426751064,1782779451000,-150.0,0.00032066,30]
[426751065,1782779451000,-150.0,0.00032066,30]
[426751066,1782779451000,-150.0,0.00032066,30]
[426751067,1782779451000,-150.0,0.00032066,30]
[426751068,1782779451000,-150.0,0.00032066,30]
[426751069,1782779451000,-150.0,0.00032066,30]
[426751073,1782779451000,-890.0,0.000322,2]
[426751071,1782779451000,-1000.0,0.000322,2]
[426751070,1782779451000,-372.26,0.00032159,30]
[426751072,1782779451000,-317.0,0.000322,2]
[426751078,1782779451000,-18470.58,0.00032232,7]
[426751074,1782779451000,-2000.0,0.000322,2]
[426751083,1782779451000,-150.0,0.00032352,30]
[426751063,1782779451000,-160.0,0.00032,120]
[426751106,1782779451000,-505.18157816,0.00032467,30]
[426751158,1782779451000,-205.92558932,0.00033123,120]
[426751111,1782779451000,-800.0,0.000325,5]
[426751143,1782779451000,-168.11679378,0.00032877,2]
[426751145,1782779451000,-150.0,0.00032925,30]
[426751139,1782779451000,-150.0,0.00032782,30]
[426751142,1782779451000,-150.0,0.00032829,30]
[426751140,1782779451000,-210.28,0.00032789,3]
[426751148,1782779451000,-350.0,0.00033,7]
[426751147,1782779451000,-326.59,0.00033,30]
[426751159,1782779451000,-150.0,0.00033211,30]
[426751149,1782779451000,-235.0,0.00033031,3]
[426751150,1782779451000,-1758.0,0.00033055,5]
[426751151,1782779451000,-1951.0,0.00033055,5]
[426751153,1782779451000,-2210.27188032,0.00033093,30]
[426751141,1782779451000,-154.46935744,0.00032809,2]
[426751155,1782779451000,-505.0,0.00033101,18]
[426751154,1782779451000,-505.18157816,0.00033093,30]
[426751157,1782779451000,-3565.0,0.00033112,2]
[426751156,1782779451000,-6087.0,0.00033112,2]
[426751161,1782779451000,-150.0,0.00033211,30]
[426751160,1782779451000,-150.0,0.00033211,30]
[426751162,1782779451000,-150.0,0.00033211,30]
[426751165,1782779451000,-220.42759619,0.00033304,2]
[426751166,1782779451000,-313.27015614,0.00033304,2]
[426751168,1782779451000,-5000.0,0.00033312,2]
[426751163,1782779451000,-150.0,0.00033211,30]
[426751109,1782779451000,-236.96,0.00032488,60]
[426751164,1782779451000,-150.0,0.00033211,30]
[426751152,1782779451000,-150.0,0.00033068,30]
[426751144,1782779451000,-951.96,0.00032877,120]
[426751167,1782779451000,-5554.43514228,0.00033312,2]
[426751137,1782779451000,-505.18157816,0.00032737,30]
[426751146,1782779451000,-800.0,0.00033,5]
[426751112,1782779451000,-1000.0,0.000325,2]
[426751116,1782779451000,-162.27,0.00032617,2]
[426751110,1782779451000,-150.0,0.00032495,30]
[426751115,1782779451000,-100000.0,0.00032567,120]
[426751114,1782779451000,-151.0,0.00032564,14]
[426751119,1782779451000,-332.0,0.00032619,30]
[426751117,1782779451000,-157.0,0.00032617,30]
[426751121,1782779451000,-156.0,0.00032619,30]
[426751118,1782779451000,-221.0,0.00032619,30]
[426751120,1782779451000,-392.0,0.00032619,30]
[426751122,1782779451000,-176.0,0.00032619,30]
[426751124,1782779451000,-152.0,0.00032619,30]
[426751134,1782779451000,-319.0,0.00032683,30]
[426751113,1782779451000,-266.68801514,0.00032515,2]
[426751125,1782779451000,-171.0,0.00032619,30]
[426751123,1782779451000,-464.0,0.00032619,30]
[426751138,1782779451000,-384.867825,0.00032778,7]
[426751136,1782779451000,-2210.27188032,0.00032737,30]
[426751131,1782779451000,-150.0,0.00032638,30]
[426751132,1782779451000,-346.36363636,0.00032648,2]
[426751133,1782779451000,-1230.0,0.00032659,2]
[426751135,1782779451000,-154.0,0.00032697,30]
[426751127,1782779451000,-163.0,0.00032619,30]
[426751126,1782779451000,-652.0,0.00032619,30]
[426751128,1782779451000,-150.0,0.00032638,30]
[426751130,1782779451000,-150.0,0.00032638,30]
[426751129,1782779451000,-150.0,0.00032638,30]
[426751194,1782779452000,-495.28773916,0.00033516,2]
[426751208,1782779452000,-300.0,0.00033516,2]
[426751210,1782779452000,-302.16203863,0.00033516,2]
[426751206,1782779452000,-730.12015411,0.00033516,2]
[426751202,1782779452000,-301.01762354,0.00033516,2]
[426751200,1782779452000,-300.0,0.00033516,2]
[426751197,1782779452000,-300.0,0.00033516,2]
[426751199,1782779452000,-607.84242655,0.00033516,2]
[426751203,1782779452000,-300.0,0.00033516,2]
[426751198,1782779452000,-300.0,0.00033516,2]
[426751201,1782779452000,-300.0,0.00033516,2]
[426751207,1782779452000,-303.39081758,0.00033516,2]
[426751209,1782779452000,-300.0,0.00033516,2]
[426751211,1782779452000,-300.0,0.00033516,2]
[426751216,1782779452000,-300.0,0.00033516,2]
[426751214,1782779452000,-300.0,0.00033516,2]
[426751217,1782779452000,-300.0,0.00033516,2]
[426751212,1782779452000,-300.0,0.00033516,2]
[426751218,1782779452000,-300.0,0.00033516,2]
[426751213,1782779452000,-300.0,0.00033516,2]
[426751220,1782779452000,-529.65361931,0.00033516,2]
[426751219,1782779452000,-345.7536,0.00033516,2]
[426751221,1782779452000,-300.0,0.00033516,2]
[426751205,1782779452000,-300.0,0.00033516,2]
[426751222,1782779452000,-300.0,0.00033516,2]
[426751215,1782779452000,-300.0,0.00033516,2]
[426751196,1782779452000,-300.0,0.00033516,2]
[426751183,1782779452000,-800.0,0.000335,5]
[426751204,1782779452000,-536.77715252,0.00033516,2]
[426751223,1782779452000,-300.0,0.00033516,2]
[426751169,1782779452000,-5000.0,0.00033312,2]
[426751170,1782779452000,-5000.0,0.00033312,2]
[426751177,1782779452000,-500.0,0.00033482,14]
[426751173,1782779452000,-2210.27188032,0.00033449,30]
[426751178,1782779452000,-525.4,0.00033482,120]
[426751180,1782779452000,-841.11,0.00033482,7]
[426751171,1782779452000,-150.0,0.00033354,30]
[426751175,1782779452000,-511.14,0.00033482,120]
[426751176,1782779452000,-683.34,0.00033482,120]
[426751179,1782779452000,-500.0,0.00033482,120]
[426751174,1782779452000,-505.18157816,0.00033449,30]
[426751172,1782779452000,-2000.0,0.000334,7]
[426751181,1782779452000,-283884.23198378,0.00033483,2]
[426751186,1782779452000,-300.0,0.00033516,2]
[426751184,1782779452000,-2834.0,0.00033515,10]
[426751182,1782779452000,-150.0,0.00033497,30]
[426751185,1782779452000,-212.48,0.00033515,4]
[426751189,1782779452000,-300.0,0.00033516,2]
[426751187,1782779452000,-300.0,0.00033516,2]
[426751188,1782779452000,-300.0,0.00033516,2]
[426751191,1782779452000,-300.0,0.00033516,2]
[426751192,1782779452000,-300.0,0.00033516,2]
[426751190,1782779452000,-300.0,0.00033516,2]
[426751193,1782779452000,-300.0,0.00033516,2]
[426751195,1782779452000,-300.0,0.00033516,2]
[426751227,1782779452000,-315.08073888,0.00033516,2]
[426751268,1782779452000,-607.84242655,0.00033516,2]
[426751225,1782779452000,-1807.30940739,0.00033516,2]
[426751257,1782779452000,-300.0,0.00033516,2]
[426751267,1782779452000,-300.0,0.00033516,2]
[426751282,1782779452000,-300.0,0.00033516,2]
[426751261,1782779452000,-300.0,0.00033516,2]
[426751259,1782779452000,-300.0,0.00033516,2]
[426751266,1782779452000,-300.0,0.00033516,2]
[426751256,1782779452000,-300.0,0.00033516,2]
[426751263,1782779452000,-495.28773916,0.00033516,2]
[426751262,1782779452000,-300.0,0.00033516,2]
[426751260,1782779452000,-300.0,0.00033516,2]
[426751265,1782779452000,-300.0,0.00033516,2]
[426751264,1782779452000,-300.0,0.00033516,2]
[426751272,1782779452000,-300.0,0.00033516,2]
[426751274,1782779452000,-300.0,0.00033516,2]
[426751273,1782779452000,-536.77715252,0.00033516,2]
[426751271,1782779452000,-300.0,0.00033516,2]
[426751270,1782779452000,-300.0,0.00033516,2]
[426751275,1782779452000,-300.0,0.00033516,2]
[426751276,1782779452000,-730.12015411,0.00033516,2]
[426751277,1782779452000,-303.39081758,0.00033516,2]
[426751279,1782779452000,-300.0,0.00033516,2]
[426751278,1782779452000,-300.0,0.00033516,2]
[426751280,1782779452000,-302.16203863,0.00033516,2]
[426751281,1782779452000,-300.0,0.00033516,2]
[426751224,1782779452000,-954.30228826,0.00033516,2]
[426751258,1782779452000,-300.0,0.00033516,2]
[426751255,1782779452000,-300.0,0.00033516,2]
[426751269,1782779452000,-300.0,0.00033516,2]
[426751250,1782779452000,-300.0,0.00033516,2]
[426751226,1782779452000,-300.0,0.00033516,2]
[426751246,1782779452000,-446.09705538,0.00033516,2]
[426751228,1782779452000,-576.43989485,0.00033516,2]
[426751229,1782779452000,-300.0,0.00033516,2]
[426751230,1782779452000,-311.22255108,0.00033516,2]
[426751234,1782779452000,-300.0,0.00033516,2]
[426751240,1782779452000,-300.0,0.00033516,2]
[426751239,1782779452000,-454.26701287,0.00033516,2]
[426751236,1782779452000,-513.95923093,0.00033516,2]
[426751233,1782779452000,-523.24060639,0.00033516,2]
[426751237,1782779452000,-300.0,0.00033516,2]
[426751241,1782779452000,-300.0,0.00033516,2]
[426751231,1782779452000,-300.0,0.00033516,2]
[426751232,1782779452000,-569.01654071,0.00033516,2]
[426751235,1782779452000,-300.0,0.00033516,2]
[426751254,1782779452000,-300.0,0.00033516,2]
[426751243,1782779452000,-300.0,0.00033516,2]
[426751249,1782779452000,-300.0,0.00033516,2]
[426751245,1782779452000,-300.0,0.00033516,2]
[426751251,1782779452000,-1101.0618519,0.00033516,2]
[426751253,1782779452000,-300.0,0.00033516,2]
[426751248,1782779452000,-300.0,0.00033516,2]
[426751247,1782779452000,-300.0,0.00033516,2]
[426751244,1782779452000,-300.0,0.00033516,2]
[426751242,1782779452000,-300.0,0.00033516,2]
[426751238,1782779452000,-584.66801755,0.00033516,2]
[426751252,1782779452000,-300.0,0.00033516,2]
[426751326,1782779453000,-332.0,0.00033619,30]
[426751334,1782779453000,-163.0,0.00033619,30]
[426751325,1782779453000,-221.0,0.00033619,30]
[426751335,1782779453000,-150.0,0.0003364,30]
[426751323,1782779453000,-200.0,0.000336,8]
[426751324,1782779453000,-157.0,0.00033617,30]
[426751317,1782779453000,-300.0,0.00033516,2]
[426751316,1782779453000,-300.0,0.00033516,2]
[426751315,1782779453000,-300.0,0.00033516,2]
[426751320,1782779453000,-170.17,0.00033586,7]
[426751313,1782779453000,-454.26701287,0.00033516,2]
[426751318,1782779453000,-300.0,0.00033516,2]
[426751319,1782779453000,-100000.0,0.00033567,120]
[426751327,1782779453000,-392.0,0.00033619,30]
[426751346,1782779453000,-151.0,0.00033832,14]
[426751330,1782779453000,-464.0,0.00033619,30]
[426751331,1782779453000,-152.0,0.00033619,30]
[426751329,1782779453000,-176.0,0.00033619,30]
[426751328,1782779453000,-156.0,0.00033619,30]
[426751333,1782779453000,-652.0,0.00033619,30]
[426751336,1782779453000,-178.3,0.00033655,120]
[426751337,1782779453000,-154.0,0.00033697,30]
[426751341,1782779453000,-358.31,0.00033794,3]
[426751347,1782779453000,-511.14,0.00033834,120]
[426751342,1782779453000,-490.45625931,0.00033799,2]
[426751339,1782779453000,-150.0,0.00033784,30]
[426751340,1782779453000,-150.0,0.00033784,30]
[426751312,1782779453000,-300.0,0.00033516,2]
[426751332,1782779453000,-171.0,0.00033619,30]
[426751314,1782779453000,-300.0,0.00033516,2]
[426751296,1782779453000,-300.0,0.00033516,2]
[426751322,1782779453000,-286.68,0.00033599,2]
[426751283,1782779453000,-300.0,0.00033516,2]
[426751285,1782779453000,-300.0,0.00033516,2]
[426751284,1782779453000,-300.0,0.00033516,2]
[426751286,1782779453000,-300.0,0.00033516,2]
[426751295,1782779453000,-1807.30940739,0.00033516,2]
[426751294,1782779453000,-954.30228826,0.00033516,2]
[426751288,1782779453000,-300.0,0.00033516,2]
[426751291,1782779453000,-300.0,0.00033516,2]
[426751290,1782779453000,-529.65361931,0.00033516,2]
[426751289,1782779453000,-345.7536,0.00033516,2]
[426751287,1782779453000,-300.0,0.00033516,2]
[426751292,1782779453000,-300.0,0.00033516,2]
[426751293,1782779453000,-300.0,0.00033516,2]
[426751321,1782779453000,-150.0,0.00033593,30]
[426751298,1782779453000,-576.43989485,0.00033516,2]
[426751308,1782779453000,-300.0,0.00033516,2]
[426751299,1782779453000,-300.0,0.00033516,2]
[426751297,1782779453000,-300.0,0.00033516,2]
[426751309,1782779453000,-513.95923093,0.00033516,2]
[426751301,1782779453000,-311.22255108,0.00033516,2]
[426751306,1782779453000,-300.0,0.00033516,2]
[426751302,1782779453000,-300.0,0.00033516,2]
[426751304,1782779453000,-523.24060639,0.00033516,2]
[426751307,1782779453000,-300.0,0.00033516,2]
[426751303,1782779453000,-569.01654071,0.00033516,2]
[426751305,1782779453000,-300.0,0.00033516,2]
[426751310,1782779453000,-300.0,0.00033516,2]
[426751311,1782779453000,-584.66801755,0.00033516,2]
[426751300,1782779453000,-300.0,0.00033516,2]
[426751338,1782779453000,-150.0,0.00033784,30]
[426751345,1782779453000,-192.85004199,0.00033825,2]
[426751343,1782779453000,-2210.27188032,0.00033805,30]
[426751376,1782779453000,-160.0,0.00034,30]
[426751382,1782779453000,-505.18157816,0.0003416,30]
[426751379,1782779453000,-951.96,0.00034027,120]
[426751380,1782779453000,-150.0,0.0003407,30]
[426751381,1782779453000,-2210.27188032,0.0003416,30]
[426751383,1782779453000,-161.45,0.00034212,120]
[426751384,1782779453000,-150.0,0.00034213,30]
[426751388,1782779453000,-747.0,0.0003428,120]
[426751390,1782779453000,-747.0,0.0003429,120]
[426751391,1782779453000,-747.0,0.00034314,120]
[426751393,1782779453000,-747.0,0.00034334,120]
[426751392,1782779453000,-747.0,0.00034324,120]
[426751389,1782779453000,-812.0,0.0003429,120]
[426751385,1782779453000,-812.0,0.0003427,120]
[426751394,1782779453000,-151.0,0.00034355,14]
[426751399,1782779453000,-150.0,0.00034356,120]
[426751396,1782779453000,-150.0,0.00034356,120]
[426751398,1782779453000,-150.0,0.00034356,120]
[426751397,1782779453000,-150.0,0.00034356,120]
[426751407,1782779453000,-511.14,0.00034357,120]
[426751400,1782779453000,-150.0,0.00034356,120]
[426751401,1782779453000,-150.0,0.00034356,120]
[426751408,1782779453000,-511.14,0.00034357,120]
[426751402,1782779453000,-150.0,0.00034356,120]
[426751406,1782779453000,-511.14,0.00034357,120]
[426751403,1782779453000,-150.0,0.00034356,120]
[426751344,1782779453000,-505.18157816,0.00033805,30]
[426751405,1782779453000,-511.14,0.00034357,120]
[426751395,1782779453000,-151.0,0.00034355,14]
[426751378,1782779453000,-150.0,0.00034002,2]
[426751404,1782779453000,-511.14,0.00034357,120]
[426751374,1782779453000,-150.0,0.00033974,30]
[426751386,1782779453000,-747.0,0.0003427,120]
[426751350,1782779453000,-683.34,0.00033834,120]
[426751360,1782779453000,-500.0,0.00033834,120]
[426751351,1782779453000,-683.34,0.00033834,120]
[426751349,1782779453000,-511.14,0.00033834,120]
[426751352,1782779453000,-683.34,0.00033834,120]
[426751354,1782779453000,-488.91218932,0.00033834,14]
[426751358,1782779453000,-500.0,0.00033834,120]
[426751359,1782779453000,-500.0,0.00033834,120]
[426751356,1782779453000,-525.4,0.00033834,120]
[426751353,1782779453000,-500.0,0.00033834,14]
[426751357,1782779453000,-525.4,0.00033834,120]
[426751355,1782779453000,-525.4,0.00033834,120]
[426751361,1782779453000,-841.11,0.00033834,7]
[426751348,1782779453000,-511.14,0.00033834,120]
[426751366,1782779453000,-350.0,0.00033899,2]
[426751362,1782779453000,-841.11,0.00033834,7]
[426751387,1782779453000,-812.0,0.0003428,120]
[426751375,1782779453000,-800.0,0.00034,7]
[426751372,1782779453000,-500.0,0.00033972,60]
[426751373,1782779453000,-500.0,0.00033972,60]
[426751369,1782779453000,-505.0,0.00033924,18]
[426751377,1782779453000,-160.0,0.00034,30]
[426751370,1782779453000,-150.0,0.00033927,30]
[426751365,1782779453000,-763909.26166302,0.00033835,2]
[426751368,1782779453000,-2500.0,0.000339,12]
[426751367,1782779453000,-326.59,0.000339,30]
[426751363,1782779453000,-841.11,0.00033834,7]
[426751364,1782779453000,-384.867825,0.00033835,7]
[426751371,1782779453000,-154.46935744,0.00033929,2]
[426751461,1782779454000,-372.26,0.00034698,30]
[426751449,1782779454000,-157.0,0.00034617,30]
[426751445,1782779454000,-2000.0,0.0003455,7]
[426751439,1782779454000,-326.17785701,0.00034476,2]
[426751447,1782779454000,-171.8,0.00034554,7]
[426751446,1782779454000,-169.8925337,0.00034551,2]
[426751440,1782779454000,-800.0,0.000345,7]
[426751441,1782779454000,-2210.27188032,0.00034516,30]
[426751444,1782779454000,-13042.27476949,0.00034548,2]
[426751460,1782779454000,-154.0,0.00034697,30]
[426751448,1782779454000,-100000.0,0.00034567,120]
[426751443,1782779454000,-309.74,0.00034544,60]
[426751455,1782779454000,-464.0,0.00034619,30]
[426751453,1782779454000,-156.0,0.00034619,30]
[426751452,1782779454000,-392.0,0.00034619,30]
[426751451,1782779454000,-332.0,0.00034619,30]
[426751454,1782779454000,-176.0,0.00034619,30]
[426751456,1782779454000,-152.0,0.00034619,30]
[426751459,1782779454000,-163.0,0.00034619,30]
[426751458,1782779454000,-652.0,0.00034619,30]
[426751457,1782779454000,-171.0,0.00034619,30]
[426751462,1782779454000,-563.48694465,0.00034726,2]
[426751464,1782779454000,-642.41,0.00034765,7]
[426751463,1782779454000,-505.0,0.00034747,19]
[426751467,1782779454000,-1500.0,0.00034795,2]
[426751442,1782779454000,-505.18157816,0.00034516,30]
[426751450,1782779454000,-221.0,0.00034619,30]
[426751438,1782779454000,-229.50989598,0.00034476,2]
[426751420,1782779454000,-525.4,0.00034357,120]
[426751431,1782779454000,-4976.7382495,0.00034358,2]
[426751465,1782779454000,-169.8925337,0.00034782,2]
[426751409,1782779454000,-511.33027751,0.00034357,120]
[426751411,1782779454000,-683.34,0.00034357,120]
[426751412,1782779454000,-683.34,0.00034357,120]
[426751410,1782779454000,-683.34,0.00034357,120]
[426751413,1782779454000,-683.34,0.00034357,120]
[426751415,1782779454000,-683.38233145,0.00034357,120]
[426751414,1782779454000,-683.34,0.00034357,120]
[426751416,1782779454000,-525.4,0.00034357,120]
[426751421,1782779454000,-525.43065149,0.00034357,120]
[426751424,1782779454000,-500.0,0.00034357,120]
[426751418,1782779454000,-525.4,0.00034357,120]
[426751419,1782779454000,-525.4,0.00034357,120]
[426751417,1782779454000,-525.4,0.00034357,120]
[426751422,1782779454000,-500.0,0.00034357,120]
[426751423,1782779454000,-500.0,0.00034357,120]
[426751434,1782779454000,-154.168269,0.00034358,7]
[426751426,1782779454000,-841.11,0.00034357,7]
[426751437,1782779454000,-1500.0,0.000344,7]
[426751436,1782779454000,-154.168269,0.00034358,7]
[426751435,1782779454000,-154.168269,0.00034358,7]
[426751428,1782779454000,-841.11,0.00034357,7]
[426751427,1782779454000,-841.11,0.00034357,7]
[426751425,1782779454000,-420.39897703,0.00034357,120]
[426751429,1782779454000,-841.11,0.00034357,7]
[426751433,1782779454000,-154.168269,0.00034358,7]
[426751432,1782779454000,-2117658.6243499,0.00034358,2]
[426751430,1782779454000,-841.19,0.00034357,7]
[426751471,1782779454000,-2210.27188032,0.00034872,30]
[426751466,1782779454000,-151.0,0.00034782,2]
[426751468,1782779454000,-357.35,0.00034798,3]
[426751500,1782779454000,-392.0,0.00035072,2]
[426751502,1782779454000,-392.0,0.00035089,2]
[426751501,1782779454000,-392.0,0.00035088,2]
[426751503,1782779454000,-392.0,0.00035096,2]
[426751507,1782779454000,-242.42372909,0.000351,120]
[426751506,1782779454000,-189.30581554,0.000351,120]
[426751504,1782779454000,-286.53888233,0.000351,120]
[426751505,1782779454000,-205.06990362,0.000351,120]
[426751510,1782779454000,-208.90060572,0.000351,120]
[426751518,1782779454000,-183.66054816,0.000351,120]
[426751509,1782779454000,-208.14482667,0.000351,120]
[426751519,1782779454000,-200.30438808,0.000351,120]
[426751520,1782779454000,-195.85021396,0.000351,120]
[426751511,1782779454000,-206.11002998,0.000351,120]
[426751512,1782779454000,-204.13536785,0.000351,120]
[426751517,1782779454000,-171.744723,0.000351,120]
[426751515,1782779454000,-175.98510603,0.000351,120]
[426751516,1782779454000,-318.69808386,0.000351,120]
[426751514,1782779454000,-189.14422139,0.000351,120]
[426751513,1782779454000,-184.85110104,0.000351,120]
[426751521,1782779454000,-182.03662355,0.000351,120]
[426751523,1782779454000,-200.0,0.000351,120]
[426751524,1782779454000,-1042.97093358,0.000351,120]
[426751522,1782779454000,-415.12383346,0.000351,120]
[426751527,1782779454000,-187.817676,0.00035137,2]
[426751526,1782779454000,-392.0,0.00035127,2]
[426751470,1782779454000,-4251.0,0.00034855,10]
[426751498,1782779454000,-187.817675,0.00035061,2]
[426751499,1782779454000,-11052.54623202,0.00035066,2]
[426751525,1782779454000,-392.0,0.00035111,2]
[426751497,1782779454000,-154.46935744,0.00035049,2]
[426751508,1782779454000,-185.5949233,0.000351,120]
[426751469,1782779454000,-350.0,0.00034841,2]
[426751474,1782779454000,-374.8,0.000349,7]
[426751528,1782779454000,-392.0,0.00035143,2]
[426751473,1782779454000,-384.867825,0.00034893,7]
[426751475,1782779454000,-326.59,0.000349,30]
[426751484,1782779454000,-812.0,0.0003499,120]
[426751479,1782779454000,-812.0,0.0003498,120]
[426751483,1782779454000,-8906.0,0.00034988,5]
[426751476,1782779454000,-2500.0,0.000349,12]
[426751478,1782779454000,-812.0,0.0003498,120]
[426751482,1782779454000,-151.0,0.00034986,5]
[426751480,1782779454000,-747.0,0.0003498,120]
[426751472,1782779454000,-505.18157816,0.00034872,30]
[426751477,1782779454000,-812.0,0.0003497,120]
[426751494,1782779454000,-169.8925337,0.00035014,2]
[426751493,1782779454000,-6687.43289043,0.00035,2]
[426751495,1782779454000,-3140.17039302,0.00035023,30]
[426751491,1782779454000,-1251.1385,0.00035,2]